Cogmind - Beta 11.1 *** ADVENTURER MODE // 2022.08.10 @ 17:01:59 Player: darlorth Result: Destroyed by G-34 Mercenary with Small Laser Performance ------------- Evolutions (1) 500 Regions Visited (2) 400 Robots Destroyed (41) 205 Value Destroyed (929) 929 Prototype IDs (0) 0 Alien Tech Used (0) 0 Bonus (0) 0 TOTAL SCORE: 2034 Bonus ------- None Cogmind --------- Core Integrity 0/400 Matter 300/300 Energy 263/265 System Corruption 1% Temperature Cool (6) Movement Hovering (116) Ox1 Location -9/Materials Parts ------- > --- POWER (1) -------- Improved Ion Engine > --- PROPULSION (2) --- Hover Unit Hover Unit > --- UTILITY (4) ------ Signal Interpreter Melee Analysis Suite Weapon Shielding > --- WEAPON (2) ------- Axe Axe > --- INVENTORY (5) ---- Hover Unit Hover Unit Medium Storage Unit Katana Axe Peak State ------------ > --- POWER ------------ (None) > --- PROPULSION ------- Aluminum Leg Compact Wheel > --- UTILITY ---------- Huge Storage Unit Signal Interpreter Melee Analysis Suite Weapon Shielding > --- WEAPON ----------- Axe Axe > --- INVENTORY -------- Light Treads Light Treads Improved Heat Sink Medium Storage Unit Terrain Scanner Targeting Computer Power Shielding Assault Rifle Assault Rifle Light Assault Rifle Light Assault Rifle Katana Axe Axe [Rating: 16] Favorites ----------- Power Light Ion Engine Engine Light Ion Engine Propulsion Compact Wheel Leg Aluminum Leg Wheel Compact Wheel Hover Unit Hover Unit Utility Huge Storage Unit Device Sensor Array Storage Huge Storage Unit Processor Signal Interpreter Protection Weapon Shielding Weapon Maul Energy Gun Small Laser Ballistic Gun Assault Rifle Impact Weapon Maul Slashing Weapon Axe Special Melee Weapon Datajack Build | -11 -10 -9 ------- Run | Scr Mat Mat Slots Evolved 2 | . . 2 Power . | . . . Propulsion . | . . . Utility 2 | . . 2 Weapon . | . . . Parts Attached 33 | 6 9 18 Power 3 | 1 . 2 Engine 3 | 1 . 2 Core . | . . . Reactor . | . . . Propulsion 11 | 2 . 9 Treads . | . . . Leg 4 | . . 4 Wheel 5 | 2 . 3 Hover 2 | . . 2 Flight . | . . . Utility 10 | 1 5 4 Device 1 | . . 1 Storage 3 | 1 2 . Processor 2 | . 1 1 Hackware . | . . . Protection 4 | . 2 2 Artifact . | . . . Weapon 9 | 2 4 3 Energy Gun 1 | 1 . . Energy Cannon . | . . . Ballistic Gun 2 | 1 1 . Ballistic Cannon . | . . . Launcher . | . . . Special Weapon . | . . . Impact Weapon 2 | . 2 . Slashing Weapon 3 | . . 3 Piercing Weapon . | . . . Special Melee Weapon 1 | . 1 . Unidentified Prototypes . | . . . Parts Lost 6 | . . 6 Power 2 | . . 2 Propulsion 3 | . . 3 Utility 1 | . . 1 Weapon . | . . . Highest Loss Streak 3 | . . 3 To Critical Strikes . | . . . Average Slot Usage (%) 93 | . 96 86 Engine 10 | . 14 4 Leg 3 | . . 8 Wheel 20 | . 28 7 Hover 1 | . . 5 Storage 11 | . 14 8 Processor 9 | . 5 16 Protection 8 | . 6 11 Energy Gun 2 | . 3 . Ballistic Gun 1 | . 2 . Impact Weapon 14 | . 18 5 Slashing Weapon 5 | . . 15 Naked Turns . | . . . Heaviest Build 93 | 11 90 93 Greatest Support 32 | 32 32 32 Greatest Overweight (x) 8 | 3 2 8 Average Overweight (x) 1 | . 1 1 Largest Inventory Capacity 25 | 8 25 25 Average Capacity 21 | 7 23 20 Most Carried 22 | 6 22 21 Average Carried 15 | 2 18 13 Final Capacity 25 | 8 25 5 Final Carried 22 | 6 22 5 Class Distribution -------------------- 100% | Mutant Dominant Class ---------------- Mutant | -10/Materials Mutant | -9/Materials Resources | -11 -10 -9 ----------- Run | Scr Mat Mat Matter Collected 608 | 214 201 193 Remotely . | . . . Salvage Created 1451 | . 592 859 Parts 59 | . 18 41 Haulers Intercepted 2 | . 2 . Recyclers Shooed . | . . . Parts Field Recycled . | . . . Retrieved Matter . | . . . Parts Self-Destructed . | . . . Prevented . | . . . Kills | -11 -10 -9 ------- Run | Scr Mat Mat Combat Hostiles Destroyed 27 | . 10 17 Melee 18 | . 2 16 Guns 5 | . 5 . Classes Destroyed 12 | . 7 5 Worker 2 | . 1 1 Builder 2 | . 2 . Tunneler 1 | . . 1 Hauler 2 | . 2 . Recycler 3 | . 1 2 Operator 1 | . . 1 Watcher 3 | . 3 . Swarmer 7 | . 3 4 Grunt 15 | . 7 8 Brawler 1 | . . 1 Duelist 1 | . . 1 Sentry 3 | . . 3 Best Kill Streak 5 | . 3 5 Combat Bots Only 5 | . 3 5 Max Kills in Single Turn 1 | . 1 1 Gunslinging . | . . . Exploded . | . . . Melee 1 | . 1 1 Uniques/NPCs Destroyed . | . . . Combat | -11 -10 -9 -------- Run | Scr Mat Mat Damage Taken 1336 | . 295 1041 Core 507 | . 106 401 Absorbed by Shields . | . . . Redirected to Shielding 28 | . . 28 Core Remaining (%) 78 | 100 57 . Volleys Fired 17 | . 17 . Largest 2 | . 2 . Hottest 60 | . 60 . Shots Fired 34 | . 34 . Gun 34 | . 34 . Cannon . | . . . Launcher . | . . . Special . | . . . Kinetic 17 | . 17 . Thermal 17 | . 17 . Explosive . | . . . Electromagnetic . | . . . Robot Hit Streak 10 | . 10 . Robot Miss Streak 1 | . 1 . Penetration Max . | . . . Secondary Targets 1 | . 1 . Max Gunslinging Chain 1 | . 1 . Shots Hit Robots 95 | . 49 46 Core Hits 31 | . 10 21 Critical Kills 2 | . . 2 Critical Parts Destroyed 7 | . 6 1 Critical Strikes 12 | . 6 6 Smash 9 | . 6 3 Sever 3 | . . 3 Melee Attacks 82 | . 28 54 Impact 36 | . 23 13 Slashing 41 | . . 41 Piercing . | . . . Sneak Attacks 16 | . 10 6 Combat Hostiles . | . . . Follow-up Attacks 5 | . . 5 Damage Inflicted 3073 | . 1273 1800 Guns 313 | . 313 . Cannons . | . . . Explosions . | . . . Melee 2760 | . 960 1800 Ramming . | . . . Kinetic 144 | . 144 . Thermal 169 | . 169 . Explosive . | . . . Electromagnetic . | . . . Impact 1243 | . 960 283 Slashing 1517 | . . 1517 Piercing . | . . . Highest Corruption 1 | . 1 1 Average Corruption 1 | . 1 1 Corruption Purged . | . . . Corruption Blocked . | . . . Effects 16 | . 6 10 Message Errors 4 | . 2 2 Matter Fused 4 | . 2 2 Energy Discharges 3 | . . 3 Data Loss (minor) 3 | . 1 2 Data Loss (major) 2 | . 1 1 Overload Shots . | . . . Overflow Damage 724 | . 582 142 Projectiles . | . . . Explosions . | . . . Melee 724 | . 582 142 Knockbacks 5 | . 4 1 Impact 5 | . 4 1 Kinetic . | . . . Secondary . | . . . Self-Inflicted Damage . | . . . Shots . | . . . Rammed . | . . . Targets Rammed . | . . . Kicked . | . . . Crushed . | . . . Highest Temperature 24 | . 24 7 Average Temperature 13 | . 14 5 Received Heat Transfer 690 | . 87 603 Siege Activations . | . . . Robots Corrupted . | . . . Combat Hostiles . | . . . Parts Fried 12 | . 11 1 Impact Corruptions 29 | . 23 6 Robots Melted . | . . . Combat Hostiles . | . . . Parts Melted . | . . . Heat Transferred 375 | . 375 . Parts Sabotaged . | . . . Parts Stolen . | . . . Parts Stripped . | . . . Power Chain Reactions . | . . . Missiles Intercepted . | . . . Alert | -11 -10 -9 ------- Run | Scr Mat Mat Peak Influence 294 | . 175 294 Initial 27 | . . 27 Average 85 | . 59 137 Maximum Alert Level 1 | . . 1 Low Security (%) 86 | 100 100 61 Level 1 13 | . . 38 Level 2 . | . . . Level 3 . | . . . Level 4 . | . . . Level 5 . | . . . High Security . | . . . Max Security . | . . . Squads Dispatched 3 | . 1 2 Investigation 2 | . 1 1 Extermination . | . . . Reinforcement 1 | . . 1 Assault . | . . . Garrison . | . . . Intercept . | . . . Searches Triggered . | . . . Construction Impeded . | . . . Haulers Reinforced . | . . . Active Scanning Responses . | . . . Cargo Convoy Interrupts . | . . . Stealth | -11 -10 -9 --------- Run | Scr Mat Mat Distress Signals 3 | . 2 1 Communications Jammed . | . . . Distress Signals . | . . . Times Spotted 44 | . 21 23 Peak Tracking Total 5 | . 4 5 Tactical Retreats . | . . . Traps | -11 -10 -9 ------- Run | Scr Mat Mat Traps Triggered 2 | . 2 . Indirectly . | . . . Trap Hack Attempts 18 | . 18 . Triggered . | . . . Disarmed . | . . . Reprogrammed 1 | . 1 . Reused . | . . . Traps Extracted . | . . . Installed . | . . . Triggered . | . . . Machines | -11 -10 -9 ---------- Run | Scr Mat Mat Machines Disabled . | . . . Max in Single Turn . | . . . Machines Sabotaged . | . . . Garrisons Compromised . | . . . Overloaded Fab Kills . | . . . Hacking | -11 -10 -9 --------- Run | Scr Mat Mat Machines Accessed 5 | . 4 1 Terminals 4 | . 3 1 Fabricators . | . . . Repair Stations . | . . . Recycling Units 1 | . 1 . Scanalyzers . | . . . Garrison Access . | . . . Total Hacks 18 | . 12 6 Successful 10 | . 8 2 Failed 8 | . 4 4 Catastrophic 2 | . 1 1 Database Lockouts . | . . . Manual 11 | . 9 2 Terminals 15 | . 9 6 Fabricators . | . . . Repair Stations . | . . . Recycling Units 3 | . 3 . Scanalyzers . | . . . Garrison Access . | . . . Terminal Hacks 8 | . 6 2 Part Schematic 2 | . 2 . Terminal Index 2 | . 1 1 Alert Level 1 | . . 1 Locate Traps 1 | . 1 . Dispatch Records 1 | . 1 . Hauler Manifests 1 | . 1 . Fabricator Hacks . | . . . Repair Station Hacks . | . . . Recycling Unit Hacks 1 | . 1 . Retrieve Components 1 | . 1 . Scanalyzer . | . . . Garrison Access Hacks . | . . . Unauthorized Hacks 1 | . 1 . Terminals 1 | . 1 . Disrupt 1 | . 1 . Fabricators . | . . . Repair Stations . | . . . Recycling Units . | . . . Scanalyzers . | . . . Garrison Access . | . . . Data Cores Recovered . | . . . Used . | . . . Hacking Detections 4 | . 3 1 Full Trace Events 1 | . . 1 Feedback Events 1 | . . 1 Corruption 1 | . . 1 Feedback Blocked . | . . . Robot Schematics Acquired . | . . . Robots Built . | . . . Authchips . | . . . Time . | . . . Total Robot Build Rating . | . . . Part Schematics Acquired 2 | . 2 . Parts Built . | . . . Authchips . | . . . Time . | . . . Total Part Build Rating . | . . . Parts Repaired . | . . . Time . | . . . Parts Recycled . | . . . Recycled Matter . | . . . Retrieved Matter . | . . . Retrieved Components 1 | . 1 . Parts Scanalyzed . | . . . Part Schematics Acquired . | . . . Parts Damaged . | . . . Bothacking | -11 -10 -9 ------------ Run | Scr Mat Mat Used RIF Installer . | . . . Robots Hacked 2 | . 2 . Non-combat 2 | . 2 . Combat . | . . . Robot Hacks Applied 3 | . 3 . parse_system 1 | . 1 . no_distress 2 | . 2 . Relay Couplers Released . | . . . Fabnet Peak Effective % . | . . . Robots Rewired . | . . . Allies Hacked . | . . . Hacks Repelled . | . . . Allies | -11 -10 -9 -------- Run | Scr Mat Mat Total Allies . | . . . Largest Group . | . . . Highest-Rated Group . | . . . Highest-Rated Ally . | . . . Total Orders . | . . . Ally Attacks . | . . . Total Damage . | . . . Kills . | . . . Allies Corrupted . | . . . Allies Melted . | . . . Intel | -11 -10 -9 ------- Run | Scr Mat Mat Robot Analysis Total . | . . . Derelict Logs Recovered . | . . . Drone Launches . | . . . Drone Recoveries . | . . . Exploration | -11 -10 -9 ------------- Run | Scr Mat Mat Turns Passed 2461 | 79 1493 889 Spaces Moved 1610 | 56 1023 531 Core 21 | 21 . . Treads . | . . . Legs 69 | . . 69 Wheels 1246 | 35 1023 188 Hover 274 | . . 274 Flight . | . . . Fastest Speed 50 | 50 100 56 Average Speed 128 | 99 126 133 Slowest Speed 680 | 200 130 680 Overloaded Moves . | . . . Propulsion Burnouts . | . . . Robots Hopped . | . . . Cave-ins Triggered . | . . . Exploration Rate (%) 40 | 4 93 23 Regions Visited 2 Branch Regions . Pre-discovered Areas . | . . . Known Exits Taken 1 | . 1 . Unknown Exits Taken 1 | 1 . . Scrap Searched . | . . . Spaces Dug 6 | . 2 4 Terrain Destroyed 6 | . 2 4 Melee 6 | . 2 4 Projectile . | . . . AOE . | . . . Terrain Rammed . | . . . Walls Destroyed . | . . . Machines Disabled . | . . . Actions | -11 -10 -9 --------- Run | Scr Mat Mat Total 1846 | 79 1137 630 Wait 29 | 6 18 5 Move 1608 | 55 1022 531 Hop . | . . . Pick Up 45 | 12 20 13 Fast Attach 4 | . 1 3 Attach 24 | 6 4 14 Detach 3 | . 3 . Swap 5 | . 4 1 Drop 19 | . 3 16 Fire 17 | . 17 . Melee 74 | . 27 47 Ram . | . . . Kick . | . . . Crush . | . . . Escape Stasis . | . . . Rewire . | . . . Trap 18 | . 18 . Miscellaneous . | . . . Route ------- -11/Scrapyard -10/Materials (discovered 3 exits: *Mat x2 / *Min) -9/Materials History --------- Turn | Location | Event 40 | -11/Scrapyard | Discovered new exit (range 16) 80 | -11/Scrapyard | Entered Materials 309 | -10/Materials | Build established: Mutant 318 | -10/Materials | Discovered new exit (range 10) 772 | -10/Materials | Discovered new exit (range 16) 969 | -10/Materials | Identified exit to Materials 1078 | -10/Materials | Discovered new exit (range 7) 1101 | -10/Materials | Identified exit to Mines 1573 | -10/Materials | Entered another Materials area 1573 | -9/Materials | Evolved 2 slots: Utility x2 1801 | -9/Materials | Lost 3 parts (1p1n1u) 1897 | -9/Materials | Core integrity fell below 50% 1951 | -9/Materials | Core integrity fell below 20% 2462 | -9/Materials | Destroyed by G-34 Mercenary with Small Laser Last Messages --------------- 02261_ Dropped Axe. 02265_ Acquired 10 matter. 02266_ Sneak attack on R-06 Scavenger. 02266_ Destroyed Com. Wheel. 02272_ R-06 Scavenger destroyed. 02276_ Sneak attack on U-05 Engineer. 02276_ Destroyed Wheel. 02285_ R-06 Scavenger collects Tractor Beam. 02291_ Sneak attack on R-06 Scavenger. 02291_ R-06 Scavenger destroyed. 02380_ Dropped Terrain Scanner. 02380_ Acquired Hover Unit. 02401_ Acquired Imp. Ion Engine. 02411_ W-16 Scout distress signal alerts nearby ally. 02431_ Y-45 Defender destroyed. 02434_ Acquired 10 matter. 02461_ T-07 Excavator suffers critical hit (Destroy). 02461_ T-07 Excavator destroyed. 02461_ Axe follow-up attack on Y-45 Defender. 02461_ Y-45 Defender Beam Rifle severed. Map ----- +----------------------------------------------------+ | ??????????????????????????????????????????? | | ??????????????????????????????????????????? | | ??????????????????????????????????????????? | | ??????????????????????????????????????????? | | ??????????????????????????????????????????? | | ??????????????????????????????????????????? | | ??????????????????????????????????????????? | | ??????????????????????????????????????????? | | ??????????????????????????????????????????? | | ???????????????????? ?????????????????????? | | ?????????????????? ????????????????????? | | ??????????????????# #???????????????????? | | ??????????????????# #?????????????????##? | | ??????????????????# +????????????????? " | | ??????????????????# #????????????????? | | ??????????????????# #????????????????# | | ??????????????????# #???????????????## | | ??????????????????# #???????????????"" | | ??????????????????# #???????????????"" | | ??????????????????# #???????????????"T ! | | ????????####?????## ##???#######????"" = | | ???????# #####! ##### #?????" = | | ???????# #?????# | | ?????? gu T t #?????# | | ???????# gY a ####### " | | ????????? #####@ = ##### [%[= " | | ?????????????????# =%!##??##########= " | | ?????????????????#! ! !#???????????# | | ?????????????????#! !#???????????# | | ?????????????????##!!!!##???????????# ##### | | ??????????????????######????????????# #?### | | ????????????????????????????????????# #?# | | ????????????????????????????????????# #?# | | ????????????????????????????????????# #?# | | ????????????????????????????????????# #?# | | ????????????????????????????????????# #?# | | ????????????????????????????????????# ##### | | ????????????????????????????????????# #? | | ????????????????????????????????????# #? | | ????????????????????????????????????# ## | | ????????????????????????????????????# | | ?????????????????????????????????#### ### | | ?????????????????????????????????# #?? | | ?????????????????????????????????#[[!!!!#?? | | ?????????????????????????????????#[[!!!!#?? | | ?????????????????????????????????########?? | | ??????????????????????????????????????????? | | ?????????????????????????????????#########? | | ?????????????????????????????????# """ #? | | ?????????????????????????????????# "T" #? | +----------------------------------------------------+ Best States ------------- Heat Dissipation 28 Energy Generation 12 Energy Capacity 265 Matter Stores 300 Matter Capacity 300 Sight Range 16 Robot Scan Range 14 Terrain Scan Density 10 Armor Coverage 150 Resistance: KI 20 Resistance: TH 20 Resistance: EX 20 Resistance: EM 20 Resistance: I 20 Resistance: S 20 Resistance: P 20 Power Shielding 33 Weapon Shielding 33 Evasion (%) 53 Melee Accuracy 5 Offensive Hacking 10 Item Schematics ----------------- Huge Storage Unit | -10/Materials | Hacked Datajack | -10/Materials | Hacked Robot Schematics ------------------ None Fabricated ------------ Nothing Alien Tech Used ----------------- None Achievements -------------- None Challenges ------------ None Game ------ Seed SpreadSniperLauncher Manual? 0 Play Time 00:33:03 Cumulative 196.5 hours Start 2022.08.10 @ 16:09:54 End 2022.08.10 @ 17:01:59 Sessions 1 Manual Loads 0 Difficulty Adventurer Special Mode None Game No. 226 Rogue 110 Adventurer 67 Explorer 49 Win Type - Total 8 Types 7/0/1/0/0/0/0/0/0 Lore% 31 Gallery% 64 Achievement% 53 Wizard Run 0 Options --------- ASCII 0 Keyboard 0 Movement Mouse Keybinds 0 Fullscreen 1 Font 12/Smallcaps Map View 83x54 Tactical HUD 1 Map Filters NONE Filters NONE Steam 1 RUN: 6bd953cc-7785-4980-a82a-be913232fb05